bitfinex-derivatives/quotes_ETHF0:USTF0_20251107
["timestamp","ask_amount","ask_price","bid_price","bid_amount"]
[1762494014123,0.48194,3363.3,3363.2,0.0044611]
[1762494014331,3.68974,3363.3,3363.2,0.0044611]
[1762494015028,0.48204,3362.6,3361.5,2.45544941]
[1762494015328,0.48204,3362.6,3362.5,1.14756227]
[1762494015329,3.68984,3362.6,3362.5,1.14756227]
[1762494015925,3.2078,3362.6,3362.5,1.14756227]
[1762494016427,3.2078,3362.6,3362.5,9.14756227]
[1762494017025,3.2078,3362.6,3362.5,1.14756227]
[1762494020025,3.68984,3362.6,3362.5,1.14756227]
[1762494022930,3.68984,3362.6,3362.5,0.39926227]
[1762494023926,3.68984,3362.6,3362.2,0.0044611]
[1762494023927,0.48209,3362.3,3362.2,0.0044611]
[1762494024632,0.48209,3362.3,3362.2,0.7527611]
[1762494025125,0.48209,3362.3,3362.2,0.75614022]
[1762494025532,3.2122611,3362.6,3362.2,0.75614022]
[1762494025533,3.2122611,3362.6,3362.5,1.1141]
[1762494026326,3.6943011,3362.6,3362.5,1.1141]
[1762494026830,3.6943011,3362.6,3362.5,1.59616]
[1762494026831,3.2122611,3362.6,3362.5,1.59616]
[1762494027329,3.68979,3363.0,3362.9,0.7483]
[1762494028523,3.2078,3363.0,3362.7,0.7483]
[1762494028829,3.68979,3363.0,3362.9,1.2303]
[1762494029030,3.68979,3363.0,3362.9,0.7483]
[1762494029224,0.48204,3362.6,3362.5,1.1141]
[1762494029431,3.68984,3362.6,3362.5,1.1141]
[1762494029619,0.48209,3362.3,3362.2,0.00784022]
[1762494029930,0.48209,3362.3,3362.2,1.23824022]
[1762494031230,3.2078,3362.6,3362.3,0.48208]
[1762494031431,4.38254,3362.6,3362.5,0.3658]
[1762494032023,0.48204,3362.6,3362.5,1.1141]
[1762494032429,3.2078,3363.0,3362.5,1.1141]
[1762494032430,3.2078,3363.0,3362.6,0.48204]
[1762494032630,0.48204,3362.6,3362.5,1.59616]
[1762494032833,0.48201,3362.8,3362.6,0.48204]
[1762494033026,0.48203,3362.7,3362.6,1.23034]
[1762494033227,0.48203,3362.7,3362.6,0.7483]
[1762494033732,3.2078,3363.0,3362.6,0.7483]
[1762494033933,3.2078,3363.0,3362.6,1.23034]
[1762494034136,0.48203,3362.7,3362.6,0.7483]
[1762494034336,3.68984,3362.6,3362.5,0.3658]
[1762494035132,0.48204,3362.6,3362.5,1.1141]
[1762494035332,0.48204,3362.6,3362.5,0.3658]
[1762494035629,0.48209,3362.3,3362.2,0.00784022]
[1762494036238,0.48209,3362.3,3362.2,0.75654022]
[1762494036737,0.48209,3362.3,3362.2,1.23864022]
[1762494037938,1.11769,3362.3,3362.2,0.00784022]
[1762494042737,0.48209,3362.3,3362.2,1.24044022]
[1762494042947,3.2078,3362.6,3362.5,0.4205]
[1762494043141,3.2078,3362.6,3362.5,1.65306]
[1762494043746,0.482,3362.9,3362.6,0.48203]
[1762494043946,0.48202,3362.8,3362.7,0.7505]
[1762494044941,0.48204,3362.6,3362.5,1.171]
[1762494045546,0.48204,3362.6,3362.5,1.65306]
[1762494046641,0.48204,3362.7,3362.5,1.65306]
[1762494046844,0.48202,3362.9,3362.7,0.48203]
[1762494047150,0.48202,3362.9,3362.8,0.7505]
[1762494047654,0.48204,3362.6,3362.5,1.65306]
[1762494048351,0.48204,3362.6,3362.5,1.171]
[1762494048853,1.08574,3362.6,3362.5,0.4205]
[1762494049349,0.48203,3362.7,3362.6,1.23254]
[1762494050551,0.48203,3362.7,3362.6,0.7505]
[1762494053551,3.2078,3363.0,3362.6,0.7505]
[1762494053756,3.2078,3363.0,3362.9,1.2325]
[1762494054742,3.2078,3364.3,3363.5,1.171]
[1762494054947,0.48187,3363.8,3363.6,0.4819]
[1762494055147,0.48185,3364.0,3363.5,0.4205]
[1762494055358,0.48183,3364.1,3364.0,1.171]
[1762494055756,0.48187,3363.8,3363.7,0.0044611]
[1762494056056,4.29337,3363.8,3363.7,0.0044611]
[1762494057353,1.08557,3363.8,3363.7,0.0044611]
[1762494059453,0.48187,3363.8,3363.7,0.0044611]
[1762494059647,0.48187,3363.8,3363.7,0.7549611]
[1762494060055,0.48187,3363.8,3363.7,0.0044611]
[1762494060261,0.48187,3363.8,3363.7,0.7549611]
[1762494060862,0.48438287,3364.1,3364.0,0.4205]
[1762494061155,0.48438287,3364.1,3364.0,1.65284]
[1762494061359,0.48438287,3364.1,3364.0,1.171]
[1762494061955,0.48438287,3364.1,3362.9,2.09949333]
[1762494061956,0.48198,3363.0,3362.9,2.09949333]
[1762494062156,0.48211,3362.1,3362.0,0.4205]
[1762494062554,1.25623439,3362.1,3362.0,0.4205]
[1762494062763,0.48211,3362.1,3362.0,0.4205]
[1762494063262,0.48211,3362.1,3362.0,0.42328902]
[1762494063657,1.26339266,3362.1,3362.0,0.42328902]
[1762494064253,0.48211,3362.1,3362.0,0.42328902]
[1762494066361,0.48219,3361.6,3361.5,0.4205]
[1762494066760,0.48219,3361.6,3361.0,0.4205]
[1762494066761,0.48226,3361.1,3361.0,0.4205]
[1762494067469,0.48545912,3361.1,3361.0,0.42412776]
[1762494068569,0.48545912,3361.1,3361.0,0.00362776]
[1762494069067,0.4823,3360.8,3360.7,0.0044611]
[1762494070065,0.4823,3360.8,3360.7,0.00679047]
[1762494070367,0.48233,3360.6,3360.5,0.4205]
[1762494071266,0.48233,3360.6,3360.5,0.42258439]
[1762494074069,0.00319912,3361.1,3360.5,0.42258439]
[1762494074269,0.00319912,3361.1,3361.0,0.4391]
[1762494074871,0.48545912,3361.1,3361.0,0.4391]
[1762494078876,0.48233,3360.6,3360.5,0.42258439]
[1762494079779,0.48233,3360.6,3360.5,1.19538439]
[1762494080075,0.48233,3360.6,3360.5,0.42258439]
[1762494080863,0.48233,3360.6,3360.5,1.19538439]
[1762494081464,0.48545912,3361.1,3361.0,0.4391]
[1762494081664,0.48545912,3361.1,3361.0,1.2119]
[1762494082178,0.48545912,3361.1,3361.0,0.4391]
[1762494083582,0.48545912,3361.1,3361.0,1.2119]
[1762494086579,0.00319912,3361.1,3361.0,1.2119]
[1762494086781,0.48545912,3361.1,3361.0,1.2119]
[1762494087075,0.00319912,3361.1,3361.0,1.69417]
[1762494088167,7.1454611,3362.4,3361.0,1.69417]
[1762494088168,0.48212,3362.1,3362.0,1.2119]
[1762494089075,0.48495501,3362.1,3362.0,1.2119]
[1762494091174,0.00283501,3362.1,3362.0,1.2119]
[1762494091574,0.48495501,3362.1,3362.0,1.2119]
[1762494095083,0.48495501,3362.1,3362.0,0.4391]
[1762494098480,0.48495501,3362.1,3362.0,1.1311]
[1762494100880,0.00283501,3362.1,3362.0,1.1311]
[1762494101087,0.78912103,3362.8,3362.7,1.17403]
[1762494101280,0.4819,3363.6,3363.5,0.4249]
[1762494101483,0.48197,3363.1,3363.0,0.4249]
[1762494101678,0.48197,3363.1,3363.0,1.1169]
[1762494102085,0.48512211,3363.1,3363.0,1.11973723]
[1762494106191,0.48512211,3363.1,3363.0,0.42773723]
[1762494107590,0.48512211,3363.1,3363.0,1.11973723]
[1762494107989,0.48512211,3363.1,3363.0,0.42773723]
[1762494109190,0.48512211,3363.1,3363.0,1.11973723]
[1762494109501,0.48512211,3363.1,3363.0,0.42773723]
[1762494111199,0.48512211,3363.1,3363.0,1.11973723]
[1762494113090,0.48512211,3363.1,3363.0,0.42773723]
[1762494114698,0.48512211,3363.1,3363.0,1.11973723]
[1762494114895,0.48512211,3363.1,3363.0,0.42773723]
[1762494115097,1.2744337,3363.1,3363.0,0.42773723]
[1762494116398,0.48204,3362.6,3362.5,0.4249]
[1762494116599,0.48212,3362.1,3361.5,0.4249]
[1762494116794,0.48219,3361.6,3361.5,0.4249]
[1762494117505,0.48219,3361.6,3361.5,0.42724403]
[1762494117803,1.27264952,3361.6,3361.5,0.42724403]
[1762494118107,0.48219,3361.6,3361.5,0.42724403]
[1762494118899,0.48212,3362.1,3362.0,1.1169]
[1762494119498,1.27240427,3362.1,3362.0,1.1169]
[1762494119902,0.48212,3362.1,3362.0,1.1169]
[1762494122507,0.48212,3362.1,3362.0,0.4249]
[1762494123408,0.48211,3362.2,3362.1,0.692]
[1762494123601,0.48512211,3363.1,3363.0,0.4249]
[1762494123801,1.27488816,3363.1,3363.0,0.4249]
[1762494124510,1.54035447,3363.1,3363.0,0.4249]
[1762494125105,0.48204,3362.6,3362.5,0.4249]
[1762494125811,1.27180605,3362.6,3362.5,0.4249]
[1762494126712,1.27180605,3362.6,3362.5,1.0601]
[1762494127010,0.48204,3362.6,3362.5,1.0601]
[1762494129313,0.48202,3362.8,3362.5,0.4249]
[1762494129514,0.48512211,3363.1,3363.0,1.068]
[1762494129707,1.27497398,3363.1,3363.0,1.068]
[1762494129908,1.27497398,3363.1,3363.0,0.4328]
[1762494131514,0.48204,3362.6,3362.5,1.0601]
[1762494134226,0.00315211,3363.1,3363.0,0.4328]
[1762494134523,0.48512211,3363.1,3363.0,0.4328]
[1762494134717,1.27533066,3363.1,3363.0,0.4328]
[1762494136420,0.48204,3362.6,3362.5,0.4249]
[1762494137621,0.48204,3362.6,3362.5,1.0601]
[1762494138421,0.48204,3362.6,3362.5,0.4249]
[1762494138923,1.27062725,3362.6,3362.5,0.4249]
[1762494139138,0.48212,3362.1,3362.0,0.4249]
[1762494140720,1.27083469,3362.1,3362.0,0.4249]
[1762494140929,0.48219,3361.6,3361.5,1.06244403]
[1762494142628,0.48219,3361.6,3361.5,0.42724403]
[1762494146033,0.48212,3362.1,3362.0,0.4328]
[1762494146432,1.27083691,3362.1,3362.0,1.068]
[1762494151033,0.48204,3362.6,3362.5,0.4328]
[1762494151225,1.27092602,3362.6,3362.5,1.068]
[1762494153034,1.27092602,3362.6,3362.5,0.4328]
[1762494157933,0.48212,3362.1,3362.0,0.4328]
[1762494158139,9.62912,3362.1,3362.0,0.4328]
[1762494158334,10.41800602,3362.1,3362.0,0.4328]
[1762494160048,0.48219,3361.6,3361.5,1.03204403]
[1762494161746,0.48219,3361.6,3361.5,0.42724403]
[1762494161944,9.62919,3361.6,3361.5,0.42724403]
[1762494163849,9.62919,3361.6,3361.5,1.03204403]
[1762494164245,10.4183997,3361.6,3361.5,1.03204403]
[1762494164744,9.62919,3361.6,3361.5,1.03204403]
[1762494164945,10.41838921,3361.6,3361.5,1.03204403]
[1762494165854,10.41850031,3361.6,3361.5,1.03204403]
[1762494169752,10.41850031,3361.6,3361.5,0.42724403]
[1762494170152,10.41850031,3361.6,3361.5,1.03204403]
[1762494170748,1.27150031,3361.6,3361.5,1.03204403]
[1762494171057,10.41750031,3361.6,3361.5,1.03204403]
[1762494177858,10.41750031,3361.6,3361.5,0.42724403]
[1762494178054,0.48222,3361.3,3360.5,0.4129]
[1762494178254,0.48232,3360.6,3360.5,0.4129]
[1762494178456,0.48239,3360.1,3359.5,0.3461]
[1762494178753,9.62539,3360.1,3359.5,0.3461]
[1762494178954,10.4211155,3360.1,3359.5,0.3461]
[1762494179154,9.62890688,3360.1,3360.0,0.34830681]
[1762494180150,10.4202319,3360.1,3360.0,0.34830681]
[1762494181054,10.4202319,3360.1,3360.0,0.00220681]
[1762494182159,10.4202319,3360.1,3359.7,0.0044611]
[1762494182160,0.48244,3359.8,3359.7,0.0044611]
[1762494182352,9.62544,3359.8,3359.7,0.0044611]
[1762494182550,10.41531354,3359.8,3359.7,0.0044611]
[1762494183162,10.41531354,3359.8,3359.7,0.00659186]
[1762494183355,9.62544,3359.8,3359.7,0.00659186]
[1762494186863,0.00351688,3360.1,3360.0,0.3788]
[1762494187055,5.56090688,3360.1,3360.0,0.3788]
[1762494189355,0.00351688,3360.1,3360.0,0.9493]
[1762494189567,3.09890688,3360.1,3360.0,0.9493]
[1762494190462,3.09890688,3360.1,3360.0,0.3788]
[1762494192665,3.09890688,3360.1,3360.0,0.9493]
[1762494193460,0.00351688,3360.1,3360.0,0.9493]
[1762494195366,0.48590688,3360.1,3360.0,0.9493]
[1762494195866,0.00351688,3360.1,3360.0,0.9493]
[1762494196062,0.00351688,3360.1,3360.0,1.43171]
[1762494196265,0.4868111,3360.4,3360.3,0.5705]
[1762494196462,0.0044611,3360.4,3360.3,0.5705]
[1762494196861,0.4868111,3360.4,3360.3,0.5705]
[1762494197056,0.0044611,3360.4,3360.3,0.5705]
[1762494197258,0.00659315,3360.4,3360.3,0.5705]
[1762494198268,0.00659315,3360.4,3360.3,1.05286]
[1762494199066,0.79262419,3361.5,3361.0,0.3788]
[1762494199269,0.956,3361.8,3361.5,0.3788]
[1762494199468,0.79276658,3361.7,3361.5,0.3788]
[1762494199969,0.79595539,3361.7,3361.5,0.3788]
[1762494200367,0.48218,3361.6,3361.5,0.3788]
[1762494200571,1.27494658,3361.6,3361.5,0.3788]
[1762494204876,1.27494658,3361.6,3361.5,0.9493]
[1762494205074,0.48218,3361.6,3361.5,0.9493]
[1762494208473,0.48218,3361.6,3361.5,0.3788]
[1762494208673,1.27551514,3361.6,3361.5,0.3788]
[1762494208875,0.48218,3361.6,3361.5,0.3788]
[1762494209077,0.48218,3361.6,3361.5,0.9493]
[1762494210378,0.48218,3361.6,3361.5,0.3788]
[1762494211777,1.27525238,3361.6,3361.5,0.3788]
[1762494212673,0.48225,3361.1,3361.0,0.3788]
[1762494214481,0.48225,3361.1,3361.0,0.9493]
[1762494215876,3.21098881,3361.7,3361.1,8.0]
[1762494216082,0.00318881,3361.7,3361.6,0.4944]
[1762494216278,3.21098881,3361.7,3361.6,0.4944]
[1762494217076,3.21098881,3361.7,3361.5,0.1731]
[1762494217077,0.3414,3360.5,3359.8,0.4944]
[1762494217271,0.48238,3360.2,3360.0,0.1919]
[1762494217572,0.48244,3359.8,3359.7,0.00659186]
[1762494217888,3.7093,3359.8,3359.7,0.50099186]
[1762494218180,3.2078,3359.8,3359.7,0.50099186]
[1762494219876,0.48243,3359.9,3359.8,0.4944]
[1762494220286,0.0044611,3360.1,3359.8,0.4944]
[1762494220783,0.48241,3360.0,3359.8,0.4944]
[1762494221285,0.0044611,3360.1,3359.9,0.5839]
[1762494221486,0.0044611,3360.1,3360.0,0.5839]
[1762494221779,0.4868611,3360.1,3360.0,0.5839]
[1762494221985,1.0477611,3360.1,3360.0,0.5839]
[1762494224181,0.48244,3359.8,3359.7,0.59049186]
[1762494226380,3.69021,3360.0,3359.7,0.59049186]
[1762494226680,3.69021,3360.0,3359.9,0.5839]
[1762494227082,3.2078,3360.0,3359.9,0.5839]
[1762494227279,3.69021,3360.0,3359.9,0.5839]
[1762494227674,4.60181,3360.0,3359.7,0.00659186]
[1762494227880,0.48244,3359.8,3359.7,0.59049186]
[1762494228986,3.69021,3360.0,3359.9,0.5839]
[1762494229285,4.25111,3360.0,3359.9,0.5839]
[1762494229488,0.48244,3359.8,3359.7,0.59049186]
[1762494229679,1.04334,3359.8,3359.7,0.59049186]
[1762494231688,1.04334,3359.8,3359.7,0.00659186]
[1762494233177,1.04334,3359.8,3359.7,0.59049186]
[1762494233592,0.5609,3359.8,3359.7,0.59049186]
[1762494233886,3.5585,3360.0,3359.9,0.5839]
[1762494233887,3.2078,3360.0,3359.9,0.5839]
[1762494234590,3.69021,3360.0,3359.9,0.5839]
[1762494235683,4.25111,3360.0,3359.9,0.5839]
[1762494237886,0.5609,3359.8,3359.7,0.00659186]
[1762494238696,0.5609,3359.8,3359.7,0.59049186]
[1762494239496,1.04334,3359.8,3359.7,0.59049186]
[1762494240789,1.04334,3359.8,3359.7,0.00659186]
[1762494241191,0.3252,3359.0,3358.7,3.2078]
[1762494241696,0.5609,3358.8,3358.7,3.2078]
[1762494241889,0.5609,3358.8,3358.7,3.7917]
[1762494242288,0.00252855,3358.8,3358.7,3.79416495]
[1762494242488,0.48510855,3358.8,3358.7,3.79416495]
[1762494242890,0.00252855,3358.8,3358.7,3.79416495]
[1762494243493,0.48510855,3358.8,3358.7,3.79416495]
[1762494244394,0.00252855,3358.8,3358.7,4.27675495]
[1762494245392,3.2078,3359.5,3359.4,0.5274]
[1762494245697,3.69028,3359.5,3359.4,0.5274]
[1762494246393,4.49002605,3359.5,3359.4,0.5274]
[1762494246598,4.99772605,3359.5,3359.4,0.5274]
[1762494246791,5.29362605,3359.5,3359.4,0.5274]
[1762494247093,5.29362605,3359.5,3359.0,0.2788]
[1762494247094,0.48252,3359.3,3359.2,0.5274]
[1762494247394,3.21070587,3359.5,3359.4,0.5274]
[1762494247592,4.00788799,3359.5,3359.4,0.5274]
[1762494247994,3.69318587,3359.5,3359.4,0.5274]
[1762494249304,4.20088587,3359.5,3359.4,0.5274]
[1762494250395,0.48253,3359.2,3359.1,0.5274]
[1762494251001,0.48251,3359.3,3359.2,0.5274]
[1762494254000,0.48539587,3359.5,3359.2,1.00992]
[1762494254201,0.00290587,3359.5,3359.4,0.5274]
[1762494254507,0.00290587,3359.5,3359.4,1.00989]
[1762494254906,0.48538587,3359.5,3359.4,0.5274]
[1762494260313,0.99019,3359.4,3359.3,0.668]
[1762494262812,0.29880587,3359.5,3359.1,0.5274]
[1762494262813,0.48253,3359.2,3359.1,0.5274]
[1762494263411,0.99023,3359.2,3359.1,0.5274]
[1762494264114,0.8323,3359.0,3358.9,3.8758]
[1762494264317,1.31485,3359.0,3358.9,3.8758]
[1762494264614,0.99028,3358.8,3358.7,0.00246495]
[1762494264810,1.79016435,3358.8,3358.7,0.00246495]
[1762494266811,0.3246,3359.0,3358.7,0.52986495]
[1762494267011,0.99025,3359.0,3358.9,0.5274]
[1762494267210,1.78954464,3359.0,3358.9,0.5274]
[1762494267413,0.79929464,3359.0,3358.9,0.5274]
[1762494267614,3.69034,3359.1,3359.0,0.5274]
[1762494267815,4.99723515,3359.1,3359.0,0.5274]
[1762494268109,0.48257,3358.9,3358.8,0.5274]
[1762494268313,0.3246,3359.0,3358.7,0.52986495]
[1762494269016,0.48257,3358.9,3358.8,0.5274]
[1762494270215,3.2078,3359.1,3359.0,0.8708]
[1762494270616,3.69033,3359.1,3359.0,0.8708]
[1762494271408,0.99023,3359.1,3359.0,0.5274]
[1762494273409,0.99027,3358.9,3358.8,0.5274]
[1762494273610,0.29880587,3359.5,3358.8,0.5274]
[1762494273913,0.00290587,3359.5,3359.4,1.00989]
[1762494274218,0.00290587,3359.5,3359.4,0.5274]
[1762494277220,0.48538587,3359.5,3359.4,0.5274]
[1762494278925,0.00290587,3359.5,3359.4,1.00989]
[1762494284419,0.48538587,3359.5,3359.4,1.00989]
[1762494284618,0.48538587,3359.5,3359.4,0.5274]
[1762494285619,0.48538587,3359.5,3359.4,1.00989]
[1762494285916,0.00290587,3359.5,3359.4,1.00989]
[1762494286327,0.48538587,3359.5,3359.4,0.5274]
[1762494287529,0.48538587,3359.5,3359.4,1.00989]
[1762494287930,0.00290587,3359.5,3359.4,1.00989]
[1762494288231,0.48538587,3359.5,3359.4,1.00989]
[1762494289530,0.48538587,3359.5,3359.4,0.5274]
[1762494289827,0.48538587,3359.5,3359.4,1.00989]
[1762494291228,0.4897,3359.3,3358.8,0.48256]
[1762494291423,0.48252,3359.2,3359.1,0.4498]
[1762494292030,0.48251,3359.3,3359.2,0.4498]
[1762494292431,0.48251,3359.3,3359.2,0.93232]
[1762494293124,0.48251,3359.3,3359.2,0.4498]
[1762494293325,0.97223,3359.1,3359.0,0.4498]
[1762494294225,0.97223,3359.1,3359.0,0.93235]
[1762494295032,0.97223,3359.1,3359.0,1.18955]
[1762494295624,0.97223,3359.1,3359.0,0.707]
[1762494296532,0.97223,3359.1,3359.0,1.18955]
[1762494296918,0.48252,3359.2,3359.1,0.48253]
[1762494297128,0.48252,3359.2,3359.1,0.93233]
[1762494297323,3.2078,3359.4,3359.2,0.48251]
[1762494297528,0.48252,3359.3,3359.2,0.4498]
[1762494297728,0.97222,3359.3,3359.2,0.4498]
[1762494298231,0.97223,3359.1,3359.0,0.4498]
[1762494300529,0.97228,3358.8,3358.7,0.00246495]
[1762494300924,0.4897,3358.8,3358.7,0.93485495]
[1762494301125,0.48256,3358.9,3358.8,0.93238]
[1762494301330,0.48256,3358.9,3358.8,0.4498]
[1762494301535,0.97226,3358.9,3358.8,0.4498]
[1762494301840,0.48258,3358.8,3358.7,0.93485495]
[1762494302020,0.97226,3358.9,3358.8,0.4498]
[1762494302227,0.97228,3358.8,3358.7,0.00246495]
[1762494303727,1.25692,3358.5,3358.4,0.0044611]
[1762494304735,1.25692,3358.5,3358.4,0.00683316]
[1762494304928,3.2078,3358.8,3358.6,0.4201]
[1762494305237,3.69038,3358.8,3358.7,0.4201]
[1762494305834,3.2078,3358.8,3358.7,0.90269]
[1762494306535,0.48251,3359.3,3359.0,0.76754]
[1762494306733,0.48252,3359.2,3359.1,0.4201]
[1762494306933,0.89472,3359.2,3359.1,0.4201]
[1762494307534,3.2078,3359.4,3358.7,0.668]
[1762494307741,0.48256,3359.0,3358.7,1.15059]
[1762494308237,0.48256,3359.0,3358.9,0.4201]
[1762494309241,3.4807,3359.0,3358.5,0.285]
[1762494309535,0.48261,3358.6,3358.5,0.7051]
[1762494310442,0.89481,3358.6,3358.5,0.4201]
[1762494310842,0.4122,3358.6,3358.5,0.4201]
[1762494311035,0.89481,3358.6,3358.5,0.4201]
[1762494312335,0.48256,3358.9,3358.6,0.48261]
[1762494312539,3.4807,3359.0,3358.5,0.285]
[1762494313532,0.48261,3358.6,3358.5,0.285]
[1762494313733,3.2078,3359.0,3358.5,0.285]
[1762494313930,3.2078,3359.0,3358.9,0.4201]
[1762494314138,3.69035,3359.0,3358.9,0.4201]
[1762494314642,4.10255,3359.0,3358.9,0.4201]
[1762494315038,4.10255,3359.0,3358.9,0.90266]
[1762494315039,3.2078,3359.0,3358.9,0.90266]
[1762494315239,0.48252,3359.2,3359.1,0.4201]
[1762494315434,3.45510587,3359.5,3359.1,0.90263]
[1762494315435,0.4825,3359.4,3359.1,0.90263]
[1762494315736,0.4825,3359.4,3359.3,0.4201]
[1762494315937,1.68769534,3359.4,3359.3,0.4201]
[1762494318346,3.69319587,3359.5,3359.4,0.4201]
[1762494318745,3.21070587,3359.5,3359.4,0.90259]
[1762494319045,0.00290587,3359.5,3359.4,0.90259]
[1762494324458,0.00290587,3359.5,3359.4,0.90179]
[1762494326460,0.00290587,3359.5,3359.4,4.10959]
[1762494328760,0.0044611,3360.1,3360.0,0.90251]
[1762494328953,0.0044611,3360.1,3360.0,1.18751]
[1762494329854,0.00715064,3360.1,3360.0,1.18751]
[1762494330752,0.00715064,3360.1,3360.0,1.85551]
[1762494330959,0.48232,3360.6,3360.4,0.48235]
[1762494331252,3.2078,3360.8,3360.7,0.9024]
[1762494331461,0.4122,3361.2,3361.1,0.4201]
[1762494331663,0.4122,3360.4,3360.3,3.2078]
[1762494331957,0.89685139,3360.4,3360.3,0.00346226]
[1762494332362,0.41450139,3360.4,3360.3,0.00346226]
[1762494334458,0.4122,3359.3,3359.2,0.48252]
[1762494334863,3.4807,3360.0,3359.9,0.3883]
[1762494334864,3.2078,3360.0,3359.9,0.3883]
[1762494335055,0.85718,3360.2,3360.1,0.3883]
[1762494335257,0.3748,3360.2,3360.1,0.39193874]
[1762494335658,0.3748,3360.2,3360.1,0.00363874]
[1762494336264,0.3748,3359.9,3359.8,0.0044611]
[1762494336459,0.85722,3359.9,3359.8,0.0044611]
[1762494337058,0.3748,3359.9,3359.8,0.0044611]
[1762494337465,0.3748,3359.9,3359.8,0.00734448]
[1762494337765,3.4531,3359.5,3357.5,0.2531]
[1762494338066,3.69048,3358.1,3357.5,0.2531]
[1762494338667,3.69048,3358.1,3358.0,0.2565484]
[1762494339163,0.48272,3357.8,3357.7,0.00297405]
[1762494339357,3.2078,3358.1,3357.7,0.00297405]
[1762494339569,3.69048,3358.1,3358.0,0.2599]
[1762494339868,3.2078,3358.1,3358.0,0.2599]
[1762494340462,3.21058741,3358.1,3358.0,0.26346438]
[1762494342064,3.21058741,3358.1,3358.0,0.00356438]
[1762494342362,0.4827,3358.0,3357.7,0.00297405]
[1762494342668,3.21058741,3358.1,3358.0,0.2599]
[1762494343170,3.21058741,3358.1,3358.0,0.70270027]
[1762494344260,3.21058741,3358.1,3358.0,0.26200027]
[1762494347665,3.21058741,3358.1,3357.7,0.00297405]
[1762494347970,0.48272,3357.8,3357.7,0.00297405]
[1762494348562,3.21058741,3358.1,3357.0,0.2531]
[1762494348563,0.48282,3357.1,3357.0,0.2531]
[1762494348762,3.2078,3357.1,3357.0,0.25682061]
[1762494348970,3.69062,3357.1,3357.0,0.25682061]
[1762494350366,3.69062,3357.1,3357.0,0.69752061]
[1762494351165,3.2078,3357.1,3357.0,1.18036061]
[1762494351371,0.48279,3357.3,3357.2,0.4407]
[1762494351560,3.69059,3357.3,3357.2,0.4407]
[1762494352064,0.48282,3357.1,3357.0,0.69752061]
[1762494352265,0.48282,3357.1,3357.0,1.18036061]
[1762494354961,0.48282,3357.1,3357.0,0.69752061]
[1762494355269,3.2078,3357.3,3357.2,0.92351]
[1762494355868,3.69054,3357.7,3357.6,0.4407]
[1762494356075,0.48275,3357.6,3357.5,0.2599]
[1762494360575,3.2078,3357.7,3357.6,0.92345]
[1762494361566,0.48275,3357.6,3357.5,0.2599]
[1762494362271,3.2078,3357.7,3357.6,0.92345]
[1762494362478,3.21058741,3358.1,3358.0,0.7006]
[1762494363379,3.69326741,3358.1,3358.0,0.7006]
[1762494363579,3.21058741,3358.1,3358.0,1.18329]
[1762494363776,3.69326741,3358.1,3358.0,1.18329]
[1762494364268,3.21058741,3358.1,3358.0,1.18329]
[1762494364467,0.00278741,3358.1,3358.0,1.18329]
[1762494364676,0.0044611,3358.4,3358.0,0.2599]
[1762494364867,0.48268,3358.1,3358.0,0.2599]
[1762494365472,0.48268,3358.1,3358.0,0.7216]
[1762494365773,0.48580716,3358.1,3358.0,0.7216]
[1762494367675,0.00312716,3358.1,3358.0,1.20429]
[1762494368271,0.48580716,3358.1,3358.0,1.20429]
[1762494368680,0.00312716,3358.1,3358.0,1.20429]
[1762494369177,0.48580716,3358.1,3358.0,1.20429]
[1762494369780,0.00312716,3358.1,3358.0,1.20429]
[1762494371479,3.2078,3358.5,3358.4,0.48263]
[1762494371775,3.2078,3358.9,3358.5,0.2602]
[1762494371978,3.2078,3358.9,3358.7,0.48259]
[1762494371979,0.48258,3358.8,3358.7,0.48259]
[1762494372178,0.48258,3358.8,3358.7,0.94429]
[1762494372384,0.48258,3358.8,3358.5,0.2602]
[1762494372385,3.2078,3358.9,3358.8,0.94428]
[1762494372682,3.69298325,3358.9,3358.8,0.94428]
[1762494372972,0.48261,3358.6,3358.5,0.26466821]
[1762494374181,1.28997752,3358.6,3358.5,0.26466821]
[1762494374568,1.28997752,3358.6,3358.5,0.00446821]
[1762494374774,0.48268,3358.1,3358.0,0.25541174]
[1762494374976,4.49792616,3358.1,3358.0,0.25541174]
[1762494375274,3.2078,3358.1,3358.0,0.25541174]
[1762494375475,3.69048,3358.1,3358.0,0.71711174]
[1762494376273,3.2078,3358.1,3358.0,0.71711174]
[1762494376475,3.2078,3358.1,3358.0,1.19980174]
[1762494376674,3.69048,3358.1,3358.0,0.71711174]
[1762494376981,3.2078,3358.1,3358.0,0.71711174]
[1762494377681,3.69048,3358.1,3358.0,0.71711174]
[1762494381988,3.69048,3358.1,3358.0,0.25541174]
[1762494382883,3.2078,3358.1,3357.5,0.2599]
[1762494383084,3.69055,3357.6,3357.5,0.7216]
[1762494383285,3.2078,3357.6,3357.5,0.7216]
[1762494383579,0.48273,3357.8,3357.5,0.7216]
[1762494383786,0.48273,3357.8,3357.7,0.4617]
[1762494384188,3.2078,3358.0,3357.9,0.4617]
[1762494384480,3.69049,3358.0,3357.9,0.4617]
[1762494386485,0.48274,3357.7,3357.6,0.4617]
[1762494386885,0.48275,3357.6,3357.5,0.2599]
[1762494387082,3.69055,3357.6,3357.5,0.2599]
[1762494391191,3.69055,3357.6,3357.5,0.7216]
[1762494393092,3.69055,3357.6,3357.5,0.2599]
[1762494397291,3.69055,3357.6,3357.5,0.7216]
[1762494399188,3.2078,3357.6,3357.5,0.7216]
[1762494399391,3.69055,3357.6,3357.5,0.2599]
[1762494400695,3.2078,3357.6,3357.5,0.6758]
[1762494400996,3.69055,3357.6,3357.5,0.6758]
[1762494401192,3.69055,3357.6,3357.5,0.2599]
[1762494402095,3.2078,3357.6,3357.5,1.15856]
[1762494403594,3.69055,3357.6,3357.5,1.15856]
[1762494405196,3.69055,3357.6,3357.5,0.6758]
[1762494406192,3.69055,3357.6,3357.5,0.2599]